Cogmind - Beta 10.1 @@@ ROGUE MODE // 2020.10.21 @ 17:15:20 Player: Trollpotato Result: Destroyed by S-27 Virus with Autogun Performance ------------- Evolutions (3) 1500 Regions Visited (8) 1600 Robots Destroyed (200) 1000 Value Destroyed (6470) 6470 Prototype IDs (10) 200 Alien Tech Used (0) 0 Bonus (966) 966 TOTAL SCORE: 11736 Bonus ------- High Alert Combat Kills 984 Friendly Fire -18 Cogmind --------- Core Integrity 0/700 Matter 54/300 Energy 150/150 System Corruption 6% Temperature Cool (315) Movement Rolling (160) Ox7 Location -7/Lower Caves Parts ------- > --- POWER (1) -------- Light Angular Momentum Engine > --- PROPULSION (2) --- Armored Wheel > --- UTILITY (8) ------ High-capacity Storage Unit High-capacity Storage Unit Long-range Sensor Array Advanced Signal Interpreter Improved Terrain Scan Processor Advanced Targeting Computer Improved Light Armor Plating Improved Light Armor Plating > --- WEAPON (2) ------- Ion Cannon Slug Cannon > --- INVENTORY (20) --- Light Deuterium Engine Compact Wheel Improved Heat Sink High-capacity Storage Unit Enhanced Optical Array Long-range Terrain Scanner Makeshift Salvage Targeting Computer Weapon Cycler Hardened Heavy Armor Plating Improved Shield Generator Recalibrator Cooled Particle Cannon Cooled Particle Cannon Slug Cannon Slug Cannon Proton Missile Launcher Missile Launcher Scythe Peak State ------------ > --- POWER ------------ Improved Deuterium Engine > --- PROPULSION ------- Armored Huge Wheel > --- UTILITY ---------- Improved Heat Sink Coolant Injector High-capacity Storage Unit High-capacity Storage Unit Advanced Signal Interpreter Long-range Terrain Scanner Hardened Medium Armor Plating System Backup Module > --- WEAPON ----------- Enhanced Autogun Flak Gun > --- INVENTORY -------- Deuterium Engine Light Deuterium Engine Light Deuterium Engine Armored Wheel Improved Heat Sink High-capacity Storage Unit Enhanced Optical Array Improved Terrain Scan Processor Advanced Targeting Computer Weapon Cycler Recalibrator Ion Cannon Gauss Cannon Proton Missile Launcher Missile Launcher Scythe [Rating: 48] Favorites ----------- Power Improved Deuterium Engine Engine Improved Deuterium Engine Power Core Light Nuclear Core Propulsion Armored Wheel Wheel Armored Wheel Utility High-capacity Storage Unit Device Improved Heat Sink Storage High-capacity Storage Unit Processor Advanced Signal Interpreter Hackware Hacking Suite Protection Hardened Light Armor Plating Weapon Enhanced Autogun Energy Gun Improved Medium Laser Energy Cannon Ion Cannon Ballistic Gun Enhanced Autogun Ballistic Cannon Gauss Cannon Launcher Missile Launcher Impact Weapon Hammer Slashing Weapon Scythe Build | -11 -10 -10 -9 -9 -8 -7 -7 -7 ------- Run | Scr Mat Min Mat Min Mat Fac Low Low Slots Evolved 6 | . . . 2 . 2 2 . . Power . | . . . . . . . . . Propulsion . | . . . . . . . . . Utility 6 | . . . 2 . 2 2 . . Weapon . | . . . . . . . . . Parts Attached 169 | 7 6 8 33 1 44 63 3 4 Power 18 | 1 1 3 5 . 4 4 . . Engine 15 | 1 1 3 3 . 3 4 . . Core 3 | . . . 2 . 1 . . . Reactor . | . . . . . . . . . Propulsion 20 | 2 2 3 3 . 4 5 1 . Treads . | . . . . . . . . . Leg . | . . . . . . . . . Wheel 20 | 2 2 3 3 . 4 5 1 . Hover . | . . . . . . . . . Flight . | . . . . . . . . . Utility 57 | 2 2 . 9 . 15 26 1 2 Device 22 | . . . . . 6 15 . 1 Storage 7 | 2 2 . 2 . . 1 . . Processor 3 | . . . . . . 2 1 . Hackware 4 | . . . 1 . 1 2 . . Protection 21 | . . . 6 . 8 6 . 1 Artifact . | . . . . . . . . . Weapon 74 | 2 1 2 16 1 21 28 1 2 Energy Gun 27 | . 1 2 7 . 10 7 . . Energy Cannon 3 | . . . . . . 2 . 1 Ballistic Gun 21 | 2 . . 4 . 8 7 . . Ballistic Cannon 5 | . . . 1 . 1 2 . 1 Launcher 6 | . . . . 1 1 3 1 . Special Weapon . | . . . . . . . . . Impact Weapon 4 | . . . 4 . . . . . Slashing Weapon 8 | . . . . . 1 7 . . Piercing Weapon . | . . . . . . . . . Special Melee Weapon . | . . . . . . . . . Unidentified Prototypes 7 | . . . 2 . 5 . . . Parts Lost 54 | . . 2 9 . 16 25 . 2 Power 6 | . . 1 1 . 2 2 . . Propulsion 8 | . . 1 . . 2 4 . 1 Utility 17 | . . . 1 . 6 10 . . Weapon 23 | . . . 7 . 6 9 . 1 Highest Loss Streak 7 | . . 1 2 . 3 7 . 2 Average Slot Usage (%) 96 | . 100 100 99 100 97 91 100 100 Engine 7 | . 14 14 6 . 6 6 7 7 Core 1 | . . . 4 11 2 . . . Wheel 17 | . 28 28 22 22 17 12 15 15 Device 9 | . . . . . 8 14 19 13 Storage 18 | . 28 28 22 22 18 15 15 15 Processor 5 | . . . . . . 8 19 23 Hackware 7 | . . . 11 11 11 7 . . Protection 9 | . . . 11 11 15 7 7 8 Energy Gun 6 | . . 15 11 1 5 3 7 6 Ballistic Gun 7 | . 27 12 6 . 8 6 . . Ballistic Cannon 2 | . . . 1 11 3 1 4 1 Naked Turns . | . . . . . . . . . Heaviest Build 109 | 17 41 44 81 81 92 109 91 91 Greatest Support 32 | 32 32 24 24 24 24 32 32 28 Greatest Overweight (x) 29 | 1 1 1 3 3 7 29 3 3 Average Overweight (x) 2 | . . 1 1 3 3 3 2 3 Largest Inventory Capacity 20 | 8 16 16 20 20 20 20 20 20 Average Capacity 18 | 6 11 16 17 20 20 20 20 20 Most Carried 20 | 7 16 16 20 20 20 20 20 20 Average Carried 17 | 4 9 15 16 20 19 17 19 19 Final Capacity 20 | 8 16 16 20 20 20 20 20 20 Final Carried 20 | 7 15 16 20 20 19 20 20 19 Class Distribution -------------------- 48% | Hauler-Mutant 23% | Hacker-Mutant 20% | Mutant 4% | Hauler-Skirmisher Dominant Class ---------------- Mutant | -10/Materials Mutant | -10/Mines Mutant | -9/Materials Hauler-Mutant | -9/Mines Hauler-Mutant | -8/Materials Hauler-Mutant | -7/Factory Hauler-Skirmisher | -7/Lower Caves Hauler-Mutant | -7/Lower Caves Resources | -11 -10 -10 -9 -9 -8 -7 -7 -7 ----------- Run | Scr Mat Min Mat Min Mat Fac Low Low Matter Collected 4217 | 297 342 100 622 12 1135 1659 50 . Remotely . | . . . . . . . . . Salvage Created 7805 | 56 479 218 1467 34 2860 2562 35 94 Parts 415 | 3 30 7 94 3 147 124 3 4 Haulers Intercepted 14 | . 2 . 3 . 6 3 . . Recyclers Shooed 2 | . . . 1 . . 1 . . Parts Field Recycled . | . . . . . . . . . Retrieved Matter . | . . . . . . . . . Parts Self-Destructed 7 | . . . . . . . 4 3 Prevented . | . . . . . . . . . Kills | -11 -10 -10 -9 -9 -8 -7 -7 -7 ------- Run | Scr Mat Min Mat Min Mat Fac Low Low Combat Hostiles Destroyed 144 | . 10 6 26 2 45 51 1 3 Guns 103 | . 10 6 23 . 34 29 1 . Cannons 20 | . . . 2 . 5 10 . 3 AOE 21 | . . . 1 2 6 12 . . Classes Destroyed 13 | 1 4 . 3 . 2 3 . . Worker 5 | . . . . . 4 1 . . Builder 6 | . . . . . 4 2 . . Hauler 14 | . 2 . 3 . 6 3 . . Recycler 13 | 1 . . 1 . 7 4 . . Operator 6 | . 1 . 2 . 2 1 . . Watcher 12 | . . . 5 . 5 2 . . Swarmer 28 | . 3 2 6 . 9 7 . 1 Grunt 77 | . 7 4 12 2 26 24 . 2 Duelist 3 | . . . 1 . 1 1 . . Protector 1 | . . . . . . 1 . . Sentry 22 | . . . 7 . 9 6 . . Hunter 3 | . . . . . . 3 . . Programmer 10 | . . . . . . 9 1 . Best Kill Streak 10 | 1 4 2 4 2 10 6 1 3 Combat Bots Only 6 | . 4 2 3 2 6 6 1 3 Max Kills in Single Turn 6 | 1 1 1 1 1 4 6 1 1 Gunslinging . | . . . . . . . . . Exploded 6 | . . . 1 1 2 6 . . Melee . | . . . . . . . . . Uniques/NPCs Destroyed . | . . . . . . . . . Combat | -11 -10 -10 -9 -9 -8 -7 -7 -7 -------- Run | Scr Mat Min Mat Min Mat Fac Low Low Damage Taken 10427 | . 448 363 1554 105 2831 4494 35 597 Core 1492 | . 72 40 207 37 436 600 18 82 Absorbed by Shields 606 | . . . . . . 606 . . Core Remaining (%) 53 | 100 . 55 . 39 20 . . . Volleys Fired 570 | 5 47 22 106 3 167 200 12 8 Largest 2 | 2 2 2 2 1 2 2 1 2 Hottest 140 | 40 40 70 106 30 111 140 50 108 Shots Fired 1088 | 9 94 44 211 3 311 385 15 16 Gun 908 | 9 94 44 204 . 254 293 5 5 Cannon 158 | . . . 7 . 54 86 . 11 Launcher 22 | . . . . 3 3 6 10 . Special . | . . . . . . . . . Kinetic 696 | 9 94 22 92 . 222 249 . 8 Thermal 224 | . . 1 47 . 46 127 . 3 Explosive 20 | . . . . 3 3 4 10 . Electromagnetic 148 | . . 21 72 . 40 5 5 5 Robot Hit Streak 25 | 4 7 12 13 9 25 14 3 7 Robot Miss Streak 7 | 2 4 2 3 1 5 7 . 4 Penetration Max . | . . . . . . . . . Secondary Targets 7 | . . 1 1 . 3 2 . . Max Gunslinging Chain 1 | . . 1 1 . 1 1 . . Shots Hit Robots 735 | 5 59 28 144 1 213 274 3 8 Core Hits 400 | 2 23 11 62 5 128 160 4 5 Critical Hits 10 | . 1 . 4 . 3 . . 2 Critical Kills 4 | . 1 . 1 . 1 . . 1 Critical Parts Destroyed 6 | . . . 3 . 2 . . 1 Melee Attacks 19 | . . . 5 . 2 12 . . Impact 5 | . . . 5 . . . . . Slashing 14 | . . . . . 2 12 . . Piercing . | . . . . . . . . . Sneak Attacks . | . . . . . . . . . Combat Hostiles . | . . . . . . . . . Follow-up Attacks . | . . . . . . . . . Damage Inflicted 15965 | 62 711 363 2215 252 4683 7358 68 253 Guns 10050 | 62 711 363 1948 . 2958 3934 23 51 Cannons 2366 | . . . 61 . 719 1384 . 202 Explosions 3508 | . . . 165 252 1006 2040 45 . Melee 41 | . . . 41 . . . . . Ramming . | . . . . . . . . . Kinetic 7643 | 62 711 176 777 . 2519 3265 . 133 Thermal 5038 | . . . 575 . 1022 3372 . 69 Explosive 1360 | . . . . 252 556 507 45 . Electromagnetic 1883 | . . 187 822 . 586 214 23 51 Impact 41 | . . . 41 . . . . . Slashing . | . . . . . . . . . Piercing . | . . . . . . . . . Highest Corruption 6 | . . . . . . 6 6 6 Average Corruption 3 | . . . . . . 3 6 6 Corruption Purged 2 | . . . . . . 2 . . Effects 113 | . . . . . . 88 17 8 Message Errors 28 | . . . . . . 22 3 3 Matter Fused 24 | . . . . . . 17 3 4 Heat Flow Errors 4 | . . . . . . 4 . . Energy Discharges 7 | . . . . . . 7 . . Parts Rejected 1 | . . . . . . 1 . . Data Loss (minor) 21 | . . . . . . 14 6 1 Data Loss (major) 3 | . . . . . . 2 1 . Misfires 3 | . . . . . . . 3 . Targeting Errors 19 | . . . . . . 18 1 . Weapon Failures 3 | . . . . . . 3 . . Overload Shots . | . . . . . . . . . Overflow Damage 283 | . . . 2 8 72 201 . . Projectiles 41 | . . . . . . 41 . . Explosions 242 | . . . 2 8 72 160 . . Melee . | . . . . . . . . . Knockbacks 16 | . . . . . 9 3 . 4 Impact . | . . . . . . . . . Kinetic 15 | . . . . . 9 3 . 3 Secondary 1 | . . . . . . . . 1 Self-Inflicted Damage 395 | . . . 62 . 192 134 7 . Shots 14 | . . . 3 . 6 4 1 . Rammed . | . . . . . . . . . Targets Rammed . | . . . . . . . . . Kicked . | . . . . . . . . . Crushed . | . . . . . . . . . Highest Temperature 621 | . 2 99 367 13 621 285 36 306 Average Temperature 77 | . 2 43 69 11 96 69 17 139 Received Heat Transfer 3276 | . 186 162 549 30 1062 1188 . 99 Effects 16 | . . . 1 . 14 1 . . Shutdowns 4 | . . . 1 . 3 . . . Energy Bleed 1 | . . . . . 1 . . . Interference 1 | . . . . . . 1 . . Short Circuit 4 | . . . . . 4 . . . Damage (minor) 2 | . . . . . 2 . . . Damage (major) 3 | . . . . . 3 . . . Damage (core) 1 | . . . . . 1 . . . Siege Activations . | . . . . . . . . . Robots Corrupted . | . . . . . . . . . Combat Hostiles . | . . . . . . . . . Parts Fried 3 | . . . 2 . 1 . . . Impact Corruptions . | . . . . . . . . . Robots Melted . | . . . . . . . . . Combat Hostiles . | . . . . . . . . . Parts Melted 8 | . . . 2 . 2 4 . . Heat Transferred 7582 | . . . 1273 . 1808 4390 . 111 Parts Sabotaged . | . . . . . . . . . Parts Stolen . | . . . . . . . . . Parts Stripped . | . . . . . . . . . Power Chain Reactions 10 | . . . 4 . 5 1 . . Missiles Intercepted . | . . . . . . . . . Alert | -11 -10 -10 -9 -9 -8 -7 -7 -7 ------- Run | Scr Mat Min Mat Min Mat Fac Low Low Peak Influence 1214 | 5 278 155 345 91 738 1214 . . Initial 335 | . 3 35 5 51 35 335 . . Average 372 | 1 122 35 176 64 328 587 . . Maximum Alert Level 4 | . 1 . 1 . 3 4 . . Low Security (%) 40 | 100 73 100 60 100 38 16 . . Level 1 28 | . 26 . 39 . 30 27 . . Level 2 13 | . . . . . 22 17 . . Level 3 10 | . . . . . 8 19 . . Level 4 7 | . . . . . . 18 . . Level 5 . | . . . . . . . . . High Security . | . . . . . . . . . Max Security . | . . . . . . . . . Squads Dispatched 27 | . 1 . 1 . 6 19 . . Investigation 4 | . . . . . 4 . . . Extermination 8 | . . . . . . 8 . . Reinforcement 10 | . 1 . 1 . 1 7 . . Assault 3 | . . . . . . 3 . . Garrison 2 | . . . . . 1 1 . . Intercept . | . . . . . . . . . Construction Impeded 4 | . . . . . 1 3 . . Haulers Reinforced 2 | . . . . . . 2 . . Stealth | -11 -10 -10 -9 -9 -8 -7 -7 -7 --------- Run | Scr Mat Min Mat Min Mat Fac Low Low Distress Signals 17 | . 2 . 4 . 8 3 . . Communications Jammed . | . . . . . . . . . Distress Signals . | . . . . . . . . . Times Spotted 249 | . 18 8 51 14 69 81 1 7 Peak Tracking Total 13 | . 5 3 5 13 6 8 1 7 Tactical Retreats 33 | . 1 1 13 1 8 9 . . Traps | -11 -10 -10 -9 -9 -8 -7 -7 -7 ------- Run | Scr Mat Min Mat Min Mat Fac Low Low Traps Triggered 7 | . . . . . 3 4 . . Indirectly . | . . . . . . . . . Trap Hack Attempts . | . . . . . . . . . Triggered . | . . . . . . . . . Disarmed . | . . . . . . . . . Reprogrammed . | . . . . . . . . . Reused 1 | . . . 1 . . . . . Traps Extracted . | . . . . . . . . . Installed 2 | . . . 2 . . . . . Triggered 1 | . . . 1 . . . . . Machines | -11 -10 -10 -9 -9 -8 -7 -7 -7 ---------- Run | Scr Mat Min Mat Min Mat Fac Low Low Machines Disabled 16 | . . . 3 . 5 8 . . Max in Single Turn 6 | . . . 1 . 2 6 . . Garrison Access 3 | . . . . . 1 2 . . Machines Sabotaged . | . . . . . . . . . Garrisons Compromised . | . . . . . . . . . Overloaded Fab Kills . | . . . . . . . . . Fab Network Shutdowns . | . . . . . . . . . Hacking | -11 -10 -10 -9 -9 -8 -7 -7 -7 --------- Run | Scr Mat Min Mat Min Mat Fac Low Low Machines Accessed 40 | . 1 . 9 . 16 13 1 . Terminals 27 | . . . 9 . 12 6 . . Fabricators 2 | . . . . . . 2 . . Repair Stations 3 | . . . . . 2 1 . . Recycling Units 1 | . 1 . . . . . . . Scanalyzers 2 | . . . . . 1 1 . . Garrison Access 4 | . . . . . 1 3 . . Total Hacks 131 | . 1 . 25 . 62 42 1 . Successful 87 | . 1 . 15 . 39 31 1 . Failed 44 | . . . 10 . 23 11 . . Catastrophic 3 | . . . 1 . 1 1 . . Database Lockouts . | . . . . . . . . . Manual 97 | . . . 25 . 54 18 . . Terminals 97 | . . . 25 . 54 18 . . Fabricators 5 | . . . . . . 5 . . Repair Stations 9 | . . . . . 5 4 . . Recycling Units 1 | . 1 . . . . . . . Scanalyzers 11 | . . . . . 2 9 . . Garrison Access 7 | . . . . . 1 6 . . Terminal Hacks 27 | . . . 5 . 16 5 1 . Part Schematic 2 | . . . . . 2 . . . Prototype ID Bank 1 | . . . . . 1 . . . Open Door 1 | . . . . . . . 1 . Branch Access Points 1 | . . . . . 1 . . . Terminal Index 2 | . . . 1 . . 1 . . Unreport Threat 2 | . . . 1 . 1 . . . Transport Status 1 | . . . . . 1 . . . Recall Investigation 1 | . . . . . 1 . . . Recall Reinforcements 1 | . . . . . 1 . . . Hauler Manifests 1 | . . . . . 1 . . . Registered Components 2 | . . . 1 . 1 . . . Registered Prototypes 1 | . . . . . 1 . . . Zone Layout 11 | . . . 2 . 5 4 . . Fabricator Hacks 5 | . . . . . . 5 . . Load Schematic 2 | . . . . . . 2 . . Build 3 | . . . . . . 3 . . Repair Station Hacks 8 | . . . . . 4 4 . . Scan Component 4 | . . . . . 2 2 . . Repair 4 | . . . . . 2 2 . . Recycling Unit Hacks 1 | . 1 . . . . . . . Report Inventory 1 | . 1 . . . . . . . Scanalyzer 10 | . . . . . 1 9 . . Insert Component 6 | . . . . . 1 5 . . Analyze 4 | . . . . . . 4 . . Garrison Access Hacks 3 | . . . . . 1 2 . . Seal Access 3 | . . . . . 1 2 . . Unauthorized Hacks 33 | . . . 10 . 17 6 . . Terminals 33 | . . . 10 . 17 6 . . Track 6 | . . . 1 . 4 1 . . Botnet 25 | . . . 9 . 12 4 . . Operators 2 | . . . . . 1 1 . . Fabricators . | . . . . . . . . . Repair Stations . | . . . . . . . . . Recycling Units . | . . . . . . . . . Scanalyzers . | . . . . . . . . . Garrison Access . | . . . . . . . . . Data Cores Recovered 2 | . . . . . 2 . . . Used 1 | . . . . . 1 . . . Hacking Detections 35 | . . . 9 . 15 11 . . Full Trace Events 2 | . . . . . 2 . . . Feedback Events . | . . . . . . . . . Feedback Blocked . | . . . . . . . . . Robot Schematics Acquired . | . . . . . . . . . Robots Built . | . . . . . . . . . Matter . | . . . . . . . . . Time . | . . . . . . . . . Total Robot Build Rating . | . . . . . . . . . Part Schematics Acquired 6 | . . . . . 2 4 . . Parts Built 3 | . . . . . . 3 . . Matter 460 | . . . . . . 460 . . Time 230 | . . . . . . 230 . . Total Part Build Rating 10 | . . . . . . 10 . . Parts Repaired 4 | . . . . . 2 2 . . Time 190 | . . . . . 108 82 . . Parts Recycled . | . . . . . . . . . Recycled Matter . | . . . . . . . . . Retrieved Matter . | . . . . . . . . . Retrieved Components . | . . . . . . . . . Parts Scanalyzed 4 | . . . . . . 4 . . Part Schematics Acquired 4 | . . . . . . 4 . . Parts Damaged . | . . . . . . . . . Bothacking | -11 -10 -10 -9 -9 -8 -7 -7 -7 ------------ Run | Scr Mat Min Mat Min Mat Fac Low Low Used RIF Installer . | . . . . . . . . . Robots Hacked . | . . . . . . . . . Non-combat . | . . . . . . . . . Combat . | . . . . . . . . . Robot Hacks Applied . | . . . . . . . . . Relay Couplers Released 4 | . . . . . . 4 . . Programmers 4 | . . . . . . 4 . . Robots Rewired . | . . . . . . . . . Allies Hacked . | . . . . . . . . . Hacks Repelled . | . . . . . . . . . Allies | -11 -10 -10 -9 -9 -8 -7 -7 -7 -------- Run | Scr Mat Min Mat Min Mat Fac Low Low Total Allies . | . . . . . . . . . Largest Group . | . . . . . . . . . Highest-Rated Group . | . . . . . . . . . Highest-Rated Ally . | . . . . . . . . . Total Orders . | . . . . . . . . . Ally Attacks . | . . . . . . . . . Total Damage . | . . . . . . . . . Kills . | . . . . . . . . . Allies Corrupted . | . . . . . . . . . Allies Melted . | . . . . . . . . . Intel | -11 -10 -10 -9 -9 -8 -7 -7 -7 ------- Run | Scr Mat Min Mat Min Mat Fac Low Low Robot Analysis Total . | . . . . . . . . . Derelict Logs Recovered 4 | . . 2 . 1 . . 1 . Drone Launches . | . . . . . . . . . Drone Recoveries . | . . . . . . . . . Exploration | -11 -10 -10 -9 -9 -8 -7 -7 -7 ------------- Run | Scr Mat Min Mat Min Mat Fac Low Low Turns Passed 10912 | 105 558 707 1648 59 2786 4103 721 225 Spaces Moved 6370 | 55 374 593 1014 41 1572 2186 425 110 Core 10 | 5 . . . . . 5 . . Treads . | . . . . . . . . . Legs . | . . . . . . . . . Wheels 6360 | 50 374 593 1014 41 1572 2181 425 110 Hover . | . . . . . . . . . Flight . | . . . . . . . . . Fastest Speed 50 | 50 90 100 100 120 120 120 120 125 Average Speed 118 | 98 95 100 107 120 121 129 122 125 Slowest Speed 1500 | 100 100 100 120 120 160 1500 125 125 Overloaded Moves . | . . . . . . . . . Propulsion Burnouts . | . . . . . . . . . Robots Hopped . | . . . . . . . . . Cave-ins Triggered . | . . . . . . . . . Exploration Rate (%) 48 | 4 42 96 72 20 89 43 46 22 Regions Visited 8 Branch Regions 4 Pre-discovered Areas 1 | . . 1 . . . . . . Known Exits Taken 2 | . . . . . . 1 1 . Unknown Exits Taken 6 | 1 1 1 1 1 1 . . . Scrap Searched 5 | . . 4 . . . . 1 . Spaces Dug 88 | . . . 3 . 2 12 71 . Terrain Destroyed 329 | . . . 12 28 79 96 112 2 Melee 17 | . . . 3 . 2 12 . . Projectile 17 | . . . . . 3 12 . 2 AOE 295 | . . . 9 28 74 72 112 . Terrain Rammed . | . . . . . . . . . Walls Destroyed . | . . . . . . . . . Machines Disabled . | . . . . . . . . . Actions | -11 -10 -10 -9 -9 -8 -7 -7 -7 --------- Run | Scr Mat Min Mat Min Mat Fac Low Low Total 8681 | 93 487 663 1350 47 2166 3083 611 181 Wait 1345 | 20 36 28 148 3 321 568 163 58 Move 6362 | 54 373 592 1013 40 1571 2185 424 110 Hop . | . . . . . . . . . Pick Up 118 | 7 14 6 23 . 31 33 4 . Fast Attach 33 | 7 . 2 . . 10 13 . 1 Attach 57 | . . 2 11 . 18 25 . 1 Detach 8 | . . . . . 4 4 . . Swap 80 | . 6 4 22 1 16 26 3 2 Drop 87 | . 11 7 20 . 26 17 5 1 Fire 570 | 5 47 22 106 3 167 200 12 8 Melee 19 | . . . 5 . 2 12 . . Ram . | . . . . . . . . . Kick . | . . . . . . . . . Crush . | . . . . . . . . . Escape Stasis . | . . . . . . . . . Rewire . | . . . . . . . . . Trap 2 | . . . 2 . . . . . Miscellaneous . | . . . . . . . . . Route ------- -11/Scrapyard -10/Materials (discovered 2 exits: *Mat / [*Min]) -10/Mines (discovered 2 exits: *Mat x2) -9/Materials (discovered 5 exits: *Mat x3 / [*Min] / [*Sto]) -9/Mines -8/Materials (discovered 3 exits: *Fac x3) -7/Factory (discovered 5 exits: *Fac x3 / *Low x2) -7/Lower Caves -7/Lower Caves (discovered 1 exit: *Fac) History --------- Turn | Location | Event 18 | -11/Scrapyard | Discovered new exit (range 15) 106 | -11/Scrapyard | Entered Materials 300 | -10/Materials | Build established: Mutant 638 | -10/Materials | Discovered new exit (range 13) 641 | -10/Materials | Discovered new exit (range 16) 664 | -10/Materials | Entered Mines 853 | -10/Mines | Learned Materials trap positions 897 | -10/Mines | Discovered new exit (range 10) 1080 | -10/Mines | Found a hidden stash of uninstalled traps 1213 | -10/Mines | Discovered new exit (range 8) 1247 | -10/Mines | Learned location of Zion (-7) 1274 | -10/Mines | Joined a pair of Derelicts in attacking an 0b10 outpost 1371 | -10/Mines | Entered Materials 1371 | -9/Materials | Evolved 2 slots: Utility x2 1372 | -9/Materials | Loaded intel: 15 trap records 1811 | -9/Materials | Discovered new exit (range 13) 2085 | -9/Materials | Discovered new exit (range 15) 2348 | -9/Materials | Core integrity fell below 50% 2373 | -9/Materials | Discovered new exit (range 16) 2453 | -9/Materials | Discovered new exit (range 12) 2705 | -9/Materials | Build established: Hauler-Mutant 2784 | -9/Materials | Discovered new exit (range 12) 3019 | -9/Materials | Entered Mines 3020 | -9/Mines | Assembled infested the area 3025 | -9/Mines | Assisted by a Guerilla fighting off Assembled 3057 | -9/Mines | Discovered new exit (range 10) 3076 | -9/Mines | Learned Materials interactive machine intel 3078 | -9/Mines | Entered Materials 3078 | -8/Materials | Evolved 2 slots: Utility x2 3079 | -8/Materials | Loaded intel: 19 interactive machine locations 3374 | -8/Materials | Build established: Hacker-Mutant 3525 | -8/Materials | Discovered new exit (range 16) 3793 | -8/Materials | Lost 3 parts (1p1u1w) 3865 | -8/Materials | Lost 3 parts (1n1u1w) 3997 | -8/Materials | Discovered new exit (range 12) 4058 | -8/Materials | Build established: Hauler-Mutant 4817 | -8/Materials | Core integrity fell below 50% 5019 | -8/Materials | Garrison activated, responded to threat 5035 | -8/Materials | Discovered new exit (range 10) 5593 | -8/Materials | Repaired Broken Imp. Sensor Array 5659 | -8/Materials | Repaired Broken Imp. Assault Rifle 5864 | -8/Materials | Entered Factory 5864 | -7/Factory | Evolved 2 slots: Utility x2 6427 | -7/Factory | Fabricated Hacking Suite (x1) 6508 | -7/Factory | Fabricated Hacking Suite (x1) 6720 | -7/Factory | Build established: Hacker-Mutant 7794 | -7/Factory | Discovered new exit (range 6) 7799 | -7/Factory | Identified exit to Lower Caves 8142 | -7/Factory | Discovered new exit (range 16) 8189 | -7/Factory | Identified exit to Factory 8264 | -7/Factory | First assault squad dispatched 8326 | -7/Factory | Lost 7 parts (1p1n4u1w) 8576 | -7/Factory | Build established: Hauler-Mutant 8647 | -7/Factory | Repaired Hrd. Medium Armor Plating 8693 | -7/Factory | Repaired Imp. Shield Generator 8938 | -7/Factory | Discovered exit to Factory (range 7) 9070 | -7/Factory | Core integrity fell below 50% 9114 | -7/Factory | Discovered exit to Factory (range 5) 9142 | -7/Factory | Lost 4 parts (1n2u1w) 9169 | -7/Factory | Discovered exit to Lower Caves (range 8) 9203 | -7/Factory | Lost 4 parts (1n1u2w) 9224 | -7/Factory | Core integrity fell below 20% 9598 | -7/Factory | Garrison activated, responded to threat 9738 | -7/Factory | Fabricated Lrn. Sensor Array (x1) 9967 | -7/Factory | Entered Lower Caves 9973 | -7/Lower Caves | Encountered a Warlord checkpoint 10162 | -7/Lower Caves | Identified exit to Lower Caves 10688 | -7/Lower Caves | Entered another Lower Caves area 10774 | -7/Lower Caves | Discovered exit to Factory (range 10) 10895 | -7/Lower Caves | Attracted the attention of an 0b10 base 10913 | -7/Lower Caves | Destroyed by S-27 Virus with Autogun Last Messages --------------- 10895_ System corrupted: Matter fused (-10). 10897_ S-27 Virus misfires. 10898_ S-27 Virus knocked back. 10899_ Penetrated by Slug. 10901_ G-47 Trooper suffers critical hit. 10901_ G-47 Trooper destroyed. 10904_ Shock Rifle destroyed. 10904_ Penetrated by Slug. 10905_ Lgt. Nuclear Core fries itself beyond repair. 10905_ G-47 Trooper knocked back. 10906_ VTOL Module fries itself beyond repair. 10906_ Autogun fries itself beyond repair. 10908_ G-47 Trooper suffers critical hit. 10908_ Destroyed Unknown Energy Gun. 10908_ G-47 Trooper knocked back. 10910_ Penetrated by Slug. 10911_ G-47 Trooper destroyed. 10911_ Com. Wheel destroyed. 10912_ System corrupted: Matter fused (-5). 10913_ Penetrated by Slug. Map ----- +----------------------------------------------------+ | | | | | ????????##??????#????##?####?#???##?#???#?#?#???## | | ????????#??#??#???##?????#??####????#?????????#??# | | ????????????????##?######?#####????#?????????????# | | ??????????????#?????##???#???##?###???#??#??#???#? | | ????#?????????#??????###?#??#??#???##??##??##?#??? | | ????????###??##?##??######??#???##??#??????#?????? | | ??????#?#???##??##??##??##?#???#?????##?##?##???#? | | ????????#??#???#??##?#?#?###?#?##?#?##?#???####?#? | | ??##?##?##????#?###??###??####?##???#???#??##??#?? | | ???????????####?#??????#??##?###?##???#####?#?#### | | ??#????????#??##?########?#?#?#??###????##??#?##?# | | ????#??#?#?#??????##???#???#???##?#?###?#???#????? | | ?????????###?####?##??#####################?##??#? | | ????#??#??#???##???????# #?##???#??? | | ?????####????#####??#### ########### | | ?????##???????? ?###???# ########### ### ## # | | ?????#??? ??## ??#??## #""" """"# | | ???? ?? ??? ? ? ???## + "T""# | | ?????? ? ? ? ? ?#??# # # | | ????????? ? ?? ?? ? ##?# # + # | | ? ? ????? #? ??? ????#?# !# "# ### | | ??? ????#??#?? ?? ?#?##s%+ "# #### | | ? ??? ???? ????? ? #?#;Y%#"""g "# ##?# | | ???? ?? ?# ? ? #### @;[["? "# ### | | ???? ? #???? ??? ????# #[[" "# ## | | ?????? ??????#? ? #?## ######g#### ## | | ?????? ?#???#? ####??## ###### | | ????? ???????# ???#??## ??##?# # | | ??? ? ??#???#????#??#??# ##### ??##??# # | | ????? ??##??## ? ??# ## ###?########?## | | ??? ???????#??? ?? ??# ### ##?###?##?##??## | | ????? ? ? ##? ??? ?#####?##??###? ?## | | ?????????? ??##? ######?# ?#???### | | ??????# ????? ? #?### ? ? ? ??# | | ???????#??? ? ?? ? ? ??## | | ???????????#??#### ? ? ? ### | | ????#???????????## #### ######S? ? ? ? ?#?# | | ???????#?#?#?#??# #?#?# ### ??#? ??? #?### | | ??????? #??????? ######?# ? ? #? ? #??## | | ?????????#???#??# ###?##?#? ??? ? ? ????# | | ?????? ?? ?###???#?#???##??? #?#???????? ? ??### | | ?????????????##??###?#???? ####?#? ?? ????### | | ???????? ??#?????????###??? ???#???? ? ? #?# | | ???????????###?#?#????#??? #?####? ? ???? ?? ?## | | ????????????#??#??? ? ???????#?#?#? ? ? ? ???? | | ????????????????#?? ? ??????##?##? ? ?? ??????? | | ?????????????#?#?#? ?? ??????#?????? ?? ?? | | ??????????????##????????? ??#??##??##? ? ??????? | +----------------------------------------------------+ Best States ------------- Heat Dissipation 48 Coolant Potential 65 Energy Generation 18 Energy Capacity 290 Matter Stores 300 Matter Capacity 300 Sight Range 16 Robot Scan Range 20 Terrain Scan Range 24 Terrain Scan Density 110 Armor Coverage 975 Evasion (%) 42 Targeting Accuracy 8 Offensive Hacking 20 Item Schematics ----------------- Imp. Sensor Array | -8/Materials | Hacked Hacking Suite | -8/Materials | Hacked Lrn. Sensor Array | -7/Factory | Scanalyzed Arm. Huge Wheel | -7/Factory | Scanalyzed Enh. Optical Array | -7/Factory | Scanalyzed Adv. Targeting Computer | -7/Factory | Scanalyzed Robot Schematics ------------------ None Fabricated ------------ Hacking Suite | x1 | -7/Factory Hacking Suite | x1 | -7/Factory Lrn. Sensor Array | x1 | -7/Factory Alien Tech Used ----------------- None Achievements -------------- Just What I Needed Omniscient Cartographer Part-time Excavator Quick And Dirty Challenges ------------ None Game ------ Seed CompactStructuralRailgun Manual? 0 Play Time 03:17:05 Cumulative 29.9 hours Start 2020.10.21 @ 13:19:07 End 2020.10.21 @ 17:15:20 Sessions 1 Manual Loads 0 Difficulty Rogue Special Mode None Game No. 18 Rogue 18 Adventurer 0 Explorer 0 Win Type - Total 0 Types 0/0/0/0/0/0/0/0/0 Lore% 7 Gallery% 19 Achievement% 19 Wizard Run 0 Options --------- ASCII 0 Keyboard 0 Movement Numpad Keybinds 0 Fullscreen 1 Font 18/SmallcapsGlow Map View 76x50 Tactical HUD 1 Map Filters NONE Filters NONE Steam 1 RUN: d452ec21-327a-403b-b915-76787307f5ff